bitfinex-derivatives/quotes_ETHF0:USTF0_20250209
["timestamp","ask_amount","ask_price","bid_price","bid_amount"]
[1739075534147,5.13429938,2661.9,2661.4,3.7676]
[1739075535951,5.13429938,2661.9,2661.4,11.6036]
[1739075540657,3.2078,2662.6,2661.8,3.2078]
[1739075540856,0.5948,2662.5,2662.1,3.2078]
[1739075541158,4.25679828,2662.3,2662.1,3.2078]
[1739075541357,4.25679828,2662.4,2661.9,0.5565]
[1739075541564,4.25679828,2662.2,2661.9,0.5565]
[1739075541861,0.5948,2662.5,2661.9,0.5565]
[1739075542063,4.25679828,2662.3,2661.9,0.5565]
[1739075542267,4.1825331,2662.1,2661.9,0.5565]
[1739075542454,0.5948,2662.5,2661.9,0.5565]
[1739075542658,4.1825331,2662.2,2661.9,0.5565]
[1739075542960,4.1825331,2662.3,2661.9,0.5565]
[1739075543152,4.18735369,2662.1,2661.9,0.5565]
[1739075543361,4.18735369,2662.2,2661.9,0.5565]
[1739075543764,0.5948,2662.5,2661.9,0.5565]
[1739075543965,4.18735369,2662.1,2661.9,0.5565]
[1739075544268,4.28365349,2662.2,2661.9,0.5565]
[1739075544466,0.5948,2662.5,2661.9,0.5565]
[1739075544757,4.28365349,2662.1,2661.9,0.5565]
[1739075544962,4.28365349,2662.2,2661.9,0.5565]
[1739075545166,0.5948,2662.5,2661.9,0.5565]
[1739075545366,0.5948,2662.5,2662.1,3.2078]
[1739075545564,4.07809543,2662.4,2662.2,2.66462693]
[1739075545763,3.2078,2662.6,2662.3,0.5687]
[1739075545964,3.2078,2662.6,2662.4,0.5469]
[1739075547160,0.00562989,2662.7,2662.4,0.5469]
[1739075548766,3.94638828,2662.6,2662.4,0.5469]
[1739075549272,3.94638828,2662.6,2662.2,11.04832693]
[1739075549273,0.6045,2662.5,2662.2,7.836]
[1739075549570,1.1628,2662.5,2662.1,3.2078]
[1739075549766,4.06374078,2662.4,2662.2,1.1569]
[1739075551384,4.06374078,2662.4,2662.1,3.2078]
[1739075557090,4.06374078,2662.4,2661.7,3.2078]
[1739075557884,4.06374078,2662.4,2662.0,3.2078]
[1739075558188,4.06374078,2662.4,2662.1,1.1513]
[1739075558386,4.06374078,2662.4,2662.1,1.7363]
[1739075559478,0.00562989,2662.7,2662.2,2.66462693]
[1739075559884,4.06919355,2662.6,2662.2,2.66462693]
[1739075560090,0.00562989,2662.7,2662.2,2.66462693]
[1739075561887,0.60402989,2662.7,2662.2,2.66462693]
[1739075562684,0.60402989,2662.7,2662.2,10.50062693]
[1739075562884,4.22339523,2662.6,2662.2,7.836]
[1739075566588,0.00562989,2662.7,2662.3,3.2078]
[1739075567287,0.00562989,2662.7,2662.6,3.2078]
[1739075567796,0.00562989,2662.7,2662.3,3.2078]
[1739075568195,0.00562989,2662.7,2662.6,3.2078]
[1739075571397,0.00562989,2662.7,2662.6,11.0438]
[1739075571698,1.1173,2663.4,2662.6,18.7998]
[1739075571887,1.1173,2663.4,2662.9,3.2078]
[1739075572103,4.18790823,2663.3,2662.9,3.2078]
[1739075572294,0.5926,2663.2,2662.9,3.2078]
[1739075572494,0.5926,2663.2,2662.6,4.9638]
[1739075572697,4.11951216,2663.1,2662.6,4.9638]
[1739075572999,4.11951216,2663.1,2662.6,4.96942989]
[1739075573187,0.5639,2663.0,2662.6,4.96942989]
[1739075574795,4.11951216,2663.1,2662.8,2.66462693]
[1739075575001,0.00562989,2663.2,2662.9,3.2078]
[1739075575505,0.00562989,2663.2,2663.0,0.5779]
[1739075575699,0.00562989,2663.2,2663.1,1.1708]
[1739075577003,0.00562989,2663.2,2663.1,3.83542693]
[1739075577604,0.00562989,2663.2,2663.1,11.67142693]
[1739075578606,0.00562989,2663.2,2663.1,11.67417363]
[1739075580003,0.00562989,2663.2,2663.1,7.8387467]
[1739075580211,4.36488736,2663.2,2663.1,7.8387467]
[1739075582510,0.00562989,2663.2,2663.1,7.8387467]
[1739075583015,4.42962693,2663.8,2663.1,10.50337363]
[1739075583016,3.2078,2663.8,2663.1,10.50337363]
[1739075583209,0.5471,2663.7,2663.2,4.9185]
[1739075583410,4.8187813,2663.7,2663.2,4.9185]
[1739075584009,4.8187813,2663.7,2663.5,3.2078]
[1739075584311,0.00562989,2663.7,2663.5,3.2078]
[1739075585105,1.1386,2664.3,2663.6,2.917]
[1739075585305,1.1386,2664.3,2663.8,2.66462693]
[1739075585509,1.1386,2664.3,2664.0,3.2078]
[1739075587609,0.00562989,2664.4,2664.1,2.66462693]
[1739075588704,0.00562989,2664.4,2664.3,3.2078]
[1739075589517,0.5633,2664.8,2664.3,3.7881]
[1739075589710,0.5633,2664.8,2664.5,2.66462693]
[1739075591008,0.61152989,2664.9,2664.5,5.58162693]
[1739075591214,0.61152989,2664.9,2664.6,3.2078]
[1739075591610,0.61152989,2664.9,2664.5,5.58162693]
[1739075595508,0.61152989,2664.9,2664.6,0.75044]
[1739075595708,2.66462693,2665.9,2664.5,2.917]
[1739075595709,3.2078,2665.7,2664.8,5.87242693]
[1739075595909,0.5797,2665.8,2665.4,3.2078]
[1739075596117,0.5794,2666.1,2665.7,3.2078]
[1739075596313,4.85199237,2666.1,2665.7,3.2078]
[1739075596518,4.85199237,2666.1,2666.0,3.2078]
[1739075596716,4.85199237,2666.1,2665.7,3.2078]
[1739075596910,4.85199237,2666.1,2665.8,0.00562989]
[1739075597105,0.00562989,2666.3,2665.9,2.66462693]
[1739075597511,3.94989741,2666.2,2665.8,0.00562989]
[1739075597910,0.00562989,2666.3,2666.0,3.2078]
[1739075598321,0.00562989,2666.3,2666.0,8.1268]
[1739075600521,0.00562989,2666.3,2666.2,2.66462693]
[1739075603520,0.00562989,2666.3,2666.1,2.917]
[1739075605018,4.30769616,2666.2,2666.0,3.2078]
[1739075605324,4.30769616,2666.2,2665.8,0.00562989]
[1739075605325,1.2074,2666.1,2665.8,0.00562989]
[1739075607626,1.2074,2666.1,2665.8,3.21342989]
[1739075608925,1.2074,2666.1,2665.8,0.00562989]
[1739075609427,1.2074,2666.1,2665.8,3.21342989]
[1739075609627,3.99323283,2666.0,2665.8,3.21342989]
[1739075612627,7.20103283,2666.0,2665.8,0.00562989]
[1739075612822,7.77233283,2666.0,2665.4,3.2078]
[1739075613327,7.77233283,2666.0,2665.0,6.42552693]
[1739075613526,3.2078,2665.7,2665.0,6.42552693]
[1739075613928,4.31908035,2665.6,2665.1,0.00562989]
[1739075614123,0.6057,2665.5,2665.1,0.00562989]
[1739075614629,4.54518712,2665.4,2665.1,0.00562989]
[1739075616126,0.6031,2665.3,2665.1,0.00562989]
[1739075616525,4.34297037,2665.2,2665.1,0.00562989]
[1739075619221,4.34297037,2665.2,2664.5,2.917]
[1739075619425,3.2078,2665.1,2664.3,3.2078]
[1739075619936,4.05248412,2665.0,2664.3,3.2078]
[1739075620230,0.5531,2664.9,2664.3,3.2078]
[1739075620425,0.55872989,2664.9,2664.4,0.00562989]
[1739075620626,4.54525174,2664.8,2664.4,0.00562989]
[1739075622427,0.5935,2664.7,2664.4,0.00562989]
[1739075622739,4.13803044,2664.6,2664.4,0.00562989]
[1739075629539,7.34583044,2664.6,2664.4,0.00562989]
[1739075640145,8.09630044,2664.6,2664.4,0.00562989]
[1739075640349,7.34583044,2664.6,2664.4,0.00562989]
[1739075641743,8.09630044,2664.6,2664.4,0.00562989]
[1739075641939,0.75049,2664.5,2663.9,3.2078]
[1739075642147,1.33194,2664.4,2663.9,3.2078]
[1739075642348,0.5836,2664.3,2663.9,3.2078]
[1739075642759,4.60035422,2664.2,2663.9,3.2078]
[1739075645149,4.01575422,2664.2,2663.9,3.2078]
[1739075645349,1.761,2664.5,2664.0,0.5793]
[1739075645546,1.761,2664.5,2664.1,0.5958]
[1739075645857,4.31479479,2664.3,2664.1,0.5958]
[1739075646455,0.5891,2664.8,2664.2,3.2078]
[1739075646756,0.00562989,2664.9,2664.2,6.1248]
[1739075646757,4.30290717,2664.7,2664.2,6.1248]
[1739075647053,4.30290717,2664.8,2664.2,6.1248]
[1739075647445,0.00562989,2664.9,2664.2,6.1248]
[1739075647757,0.00562989,2664.9,2664.4,2.66462693]
[1739075647951,0.00562989,2664.9,2664.5,3.2078]
[1739075648153,0.00562989,2664.9,2664.6,0.5736]
[1739075648353,0.00562989,2664.9,2664.7,0.5843]
[1739075648756,0.00562989,2664.9,2664.7,3.24892693]
[1739075649156,0.00562989,2664.9,2664.8,3.2078]
[1739075649558,0.00562989,2664.9,2664.7,3.24892693]
[1739075649759,0.00562989,2664.9,2664.8,6.1248]
[1739075658771,3.2078,2665.6,2664.8,17.0438]
[1739075658960,3.7608,2666.0,2665.3,2.66462693]
[1739075659168,1.1272,2666.2,2665.8,3.2078]
[1739075659459,3.2078,2666.6,2665.9,2.66462693]
[1739075659667,0.5838,2666.5,2666.0,0.5534]
[1739075659872,3.92354263,2666.4,2666.0,0.55902989]
[1739075660071,4.51297252,2666.5,2666.0,0.55902989]
[1739075660274,0.58942989,2666.5,2666.0,0.55902989]
[1739075660470,4.12731977,2666.4,2666.0,0.55902989]
[1739075663977,0.58942989,2666.5,2666.0,0.55902989]
[1739075664177,0.58942989,2666.5,2666.1,3.2078]
[1739075665380,4.19908591,2666.4,2666.1,3.2078]
[1739075665981,0.58942989,2666.5,2666.1,3.2078]
[1739075667083,0.58942989,2666.5,2666.2,2.66462693]
[1739075669288,0.58942989,2666.5,2666.1,3.2078]
[1739075669886,4.25281717,2666.4,2666.1,3.2078]
[1739075671880,0.58942989,2666.5,2666.2,2.66462693]
[1739075672688,0.58942989,2666.5,2666.2,5.58162693]
[1739075672888,0.58942989,2666.5,2666.3,0.605]
[1739075673981,3.2078,2667.4,2666.4,3.95775]
[1739075674182,0.6045,2667.2,2667.0,2.66462693]
[1739075674487,4.6143138,2667.2,2667.0,2.66462693]
[1739075674680,0.6045,2667.2,2667.0,2.66462693]
[1739075675390,0.6045,2667.2,2666.8,3.2078]
[1739075675591,4.1849966,2667.1,2666.8,3.2078]
[1739075676881,4.1849966,2667.1,2666.5,2.917]
[1739075677086,7.3927966,2667.1,2666.5,2.917]
[1739075679591,4.1849966,2667.1,2666.5,2.917]
[1739075679791,4.1849966,2667.1,2666.7,2.66462693]
[1739075680196,4.1849966,2667.1,2666.7,5.87242693]
[1739075680594,4.1849966,2667.1,2666.7,3.2078]
[1739075683290,4.1849966,2667.1,2666.5,2.917]
[1739075683291,7.3927966,2667.1,2666.5,2.917]
[1739075686595,10.05742353,2667.1,2666.2,2.917]
[1739075686894,3.2078,2666.8,2666.2,2.917]
[1739075687098,1.1131,2666.7,2666.2,2.917]
[1739075687296,0.5516,2666.6,2666.2,2.917]
[1739075687795,4.17504578,2666.5,2666.2,2.917]
[1739075688098,4.17504578,2666.5,2666.0,2.92262989]
[1739075689596,4.17504578,2666.5,2666.1,3.2078]
[1739075689798,4.17504578,2666.5,2666.1,0.5633]
[1739075692002,7.38284578,2666.5,2666.0,2.92262989]
[1739075692197,7.38284578,2666.5,2666.0,0.00562989]
[1739075700608,8.13278578,2666.5,2666.0,0.00562989]
[1739075700809,3.2078,2666.2,2666.0,0.00562989]
[1739075701005,1.129,2666.1,2666.0,0.00562989]
[1739075701211,5.22089585,2666.1,2666.0,0.00562989]
[1739075708207,3.2078,2666.5,2666.0,0.00562989]
[1739075708411,3.7933,2666.5,2666.1,2.66462693]
[1739075708605,3.9390887,2666.4,2666.2,1.1319]
[1739075709412,3.9390887,2666.4,2666.0,0.00562989]
[1739075711919,3.9390887,2666.4,2666.1,2.66462693]
[1739075712119,3.9390887,2666.4,2666.2,1.1009]
[1739075712619,3.9390887,2666.4,2666.2,4.9125]
[1739075712807,1.1221,2666.8,2666.2,4.9125]
[1739075713224,5.32687912,2666.8,2666.2,4.9125]
[1739075713518,3.2078,2667.2,2666.6,3.2078]
[1739075713706,3.7708,2667.2,2666.7,0.5787]
[1739075714019,7.86889857,2667.2,2666.7,1.7412]
[1739075714212,3.7708,2667.2,2666.7,1.7412]
[1739075714618,4.09809857,2667.1,2666.7,1.7412]
[1739075715020,4.09809857,2667.1,2666.5,2.917]
[1739075715316,4.09809857,2667.1,2666.5,3.4757]
[1739075717116,4.09809857,2667.1,2666.6,3.2078]
[1739075717318,4.09809857,2667.1,2666.5,3.4757]
[1739075717615,4.09809857,2667.1,2666.6,3.2078]
[1739075720117,4.09809857,2667.1,2666.5,3.4757]
[1739075720423,3.2078,2666.9,2666.5,2.917]
[1739075720624,0.6021,2666.8,2666.5,2.917]
[1739075720826,0.5731,2666.7,2666.5,2.917]
[1739075721122,4.11027853,2666.6,2666.5,2.917]
[1739075721319,7.31807853,2666.6,2666.1,2.66462693]
[1739075721919,7.31807853,2666.6,2666.0,3.21342989]
[1739075722425,2.66462693,2666.5,2666.0,3.21342989]
[1739075722826,3.96981767,2666.4,2666.0,3.21342989]
[1739075723223,3.2078,2666.3,2666.0,0.00562989]
[1739075723423,0.5876,2666.2,2666.0,0.00562989]
[1739075723631,0.5496,2666.1,2666.0,0.00562989]
[1739075724015,4.83367027,2666.1,2666.0,0.00562989]
[1739075734931,5.58371027,2666.1,2665.5,2.917]
[1739075735135,3.2078,2666.0,2665.3,1.7237]
[1739075735638,4.30910699,2665.9,2665.3,1.7237]
[1739075736239,0.5596,2665.8,2665.3,1.72932989]
[1739075736427,4.31473688,2665.9,2665.3,1.72932989]
[1739075736633,4.1943878,2665.7,2665.3,1.72932989]
[1739075737030,4.12217765,2665.8,2665.3,1.72932989]
[1739075737239,0.00562989,2665.9,2665.3,1.72932989]
[1739075737540,4.12217765,2665.8,2665.3,1.72932989]
[1739075754051,4.12217765,2665.8,2665.3,1.13122989]
[1739075754257,3.95802,2665.5,2665.3,0.00562989]
[1739075754554,1.1766,2665.4,2665.3,0.00562989]
[1739075754851,5.22989966,2665.4,2665.3,0.00562989]
[1739075755454,4.63089966,2665.4,2665.3,0.00562989]
[1739075756448,4.05329966,2665.4,2665.3,0.00562989]
[1739075756648,4.05329966,2665.4,2665.3,3.21342989]
[1739075757348,4.05329966,2665.4,2665.3,3.76372989]
[1739075762754,4.05329966,2665.4,2665.3,0.00562989]
[1739075772961,1.1303,2665.8,2665.3,0.58082989]
[1739075773266,3.9072979,2665.7,2665.6,3.2078]
[1739075773566,3.2078,2666.2,2665.6,4.367]
[1739075773763,3.2078,2666.2,2665.9,2.66462693]
[1739075773957,1.1359,2666.4,2665.9,5.87242693]
[1739075774363,2.66462693,2667.1,2666.3,3.2078]
[1739075774364,0.5541,2666.8,2666.3,3.2078]
[1739075774564,0.5818,2666.7,2666.5,2.66462693]
[1739075774771,0.5541,2666.8,2666.5,2.66462693]
[1739075774972,0.00562989,2666.8,2666.5,2.66462693]
[1739075779566,0.00562989,2666.8,2666.5,5.58162693]
[1739075780558,0.00562989,2666.8,2666.5,8.78942693]
[1739075781767,0.00562989,2666.8,2666.5,5.58162693]
[1739075782574,0.00562989,2666.8,2666.5,8.78942693]
[1739075785776,0.00562989,2666.8,2666.5,5.58162693]
[1739075786168,0.00562989,2666.8,2666.5,8.78942693]
[1739075791074,0.00562989,2666.8,2666.5,2.917]
[1739075791279,4.20663818,2666.7,2666.5,2.917]
[1739075791581,1.7575,2666.6,2666.3,2.917]
[1739075791983,4.02042641,2666.5,2666.3,2.917]
[1739075792474,0.00562989,2666.8,2666.3,2.917]
[1739075792475,0.00562989,2666.8,2666.4,1.6975]
[1739075796477,0.00562989,2666.8,2666.5,5.87242693]
[1739075798387,0.00562989,2666.8,2666.6,0.74989]
[1739075799783,3.2078,2668.0,2666.6,12.23]
[1739075799989,3.2078,2668.0,2667.8,2.66462693]
[1739075800490,1.1676,2668.1,2667.8,2.66462693]
[1739075801184,1.1676,2668.1,2667.7,1.17582989]
[1739075801389,4.19119714,2668.0,2667.7,0.59672989]
[1739075801984,4.19119714,2668.0,2667.8,2.66462693]
[1739075803494,4.19119714,2668.0,2667.8,3.25412693]
[1739075803988,0.5881,2668.1,2667.8,3.25412693]
[1739075804292,0.00562989,2668.2,2667.8,3.25412693]
[1739075804493,0.00562989,2668.2,2668.1,2.66462693]
[1739075810587,1.747,2669.1,2668.1,8.66462693]
[1739075810588,3.2078,2669.1,2668.1,8.66462693]
[1739075810795,0.5935,2668.9,2668.8,2.66462693]
[1739075810983,4.83119594,2668.9,2668.8,2.66462693]
[1739075811287,0.5935,2668.9,2668.5,2.66462693]
[1739075811487,0.6032,2668.8,2668.5,2.66462693]
[1739075811686,0.5468,2668.7,2668.5,2.66462693]
[1739075811887,4.78449594,2668.7,2668.5,2.66462693]
[1739075812088,4.78449594,2668.7,2668.3,8.1268]
[1739075814700,0.5468,2668.7,2668.5,2.66462693]
[1739075815496,0.5935,2668.9,2668.5,2.66462693]
[1739075815693,0.5935,2668.9,2668.6,3.2078]
[1739075815894,0.5935,2668.9,2668.6,3.8111]
[1739075816490,0.5935,2668.9,2668.8,2.66462693]
[1739075819796,0.5935,2668.9,2668.5,2.66462693]
[1739075819996,0.5617,2668.8,2668.5,2.66462693]
[1739075820999,3.99278786,2668.7,2668.5,2.66462693]
[1739075821598,0.5935,2668.9,2668.6,3.2078]
[1739075821802,0.5935,2668.9,2668.8,2.66462693]
[1739075822703,0.00375326,2669.0,2668.8,2.66462693]
[1739075823805,4.29068503,2668.9,2668.8,2.66462693]
[1739075825508,0.00375326,2669.0,2668.8,2.66462693]
[1739075828100,4.21649552,2668.9,2668.6,3.2078]
[1739075828405,1.1464,2668.8,2668.6,3.2078]
[1739075829404,4.12237606,2668.7,2668.6,3.2078]
[1739075829808,4.69537606,2668.7,2668.6,3.2078]
[1739075830409,1.1464,2668.8,2668.6,3.2078]
[1739075832204,1.1464,2668.8,2668.5,2.66462693]
[1739075832205,4.30212955,2668.7,2668.5,2.66462693]
[1739075837609,1.1464,2668.8,2668.5,2.66462693]
[1739075837806,0.5587,2668.8,2668.6,1.1797]
[1739075838002,0.00375326,2669.0,2668.7,0.5885]
[1739075841914,0.00375326,2669.0,2668.9,3.2078]
[1739075843318,0.00375326,2669.0,2668.8,2.66462693]
[1739075844824,3.90687274,2668.9,2668.7,0.5885]
[1739075845024,4.48617274,2668.9,2668.7,0.5885]
[1739075845521,3.90687274,2668.9,2668.8,2.66462693]
[1739075845828,0.00375326,2669.0,2668.8,2.66462693]
[1739075847326,0.00375326,2669.0,2668.8,5.87242693]
[1739075850317,0.00375326,2669.0,2668.8,6.16574286]
[1739075850524,0.00375326,2669.0,2668.8,5.87242693]
[1739075853726,0.00375326,2669.0,2668.9,3.2078]
[1739075854231,3.2078,2669.7,2669.0,0.74922]
[1739075854432,3.2078,2670.0,2669.4,2.66462693]
[1739075854728,3.2078,2670.0,2669.6,3.2078]
[1739075854729,4.20305073,2670.0,2669.6,3.2078]
[1739075855025,4.20305073,2670.0,2669.7,3.21412693]
[1739075855226,1.1666,2670.1,2669.7,3.21412693]
[1739075860631,4.2449828,2670.0,2669.7,3.21412693]
[1739075860832,4.7992828,2670.0,2669.7,2.66462693]
[1739075861632,4.2449828,2670.0,2669.7,2.66462693]
[1739075861832,4.2449828,2670.0,2669.7,3.24152693]
[1739075862141,1.1666,2670.1,2669.7,3.24152693]
[1739075865132,1.1666,2670.1,2670.0,2.66462693]
[1739075865337,3.7621,2670.6,2670.0,2.66462693]
[1739075865338,0.5543,2670.6,2670.0,2.66462693]
[1739075865532,0.5547,2670.5,2670.3,2.66462693]
[1739075867947,3.98420992,2670.4,2670.0,5.87242693]
[1739075869049,3.2078,2670.3,2669.8,4.919]
[1739075869345,0.5644,2670.2,2669.8,4.919]
[1739075869648,0.604,2670.1,2669.8,4.919]
[1739075869850,1.2013,2670.1,2669.8,4.919]
[1739075871647,1.2013,2670.1,2669.7,5.87242693]
[1739075872250,4.27822592,2670.0,2669.7,5.87242693]
[1739075876351,1.2013,2670.1,2669.7,5.87242693]
[1739075877049,0.5644,2670.2,2670.0,2.66462693]
[1739075877254,3.2078,2670.6,2670.0,2.66462693]
[1739075877255,0.5857,2670.5,2670.0,12.10242693]
[1739075877442,0.5857,2670.5,2670.4,2.66462693]
[1739075879053,0.5857,2670.5,2670.1,3.80882693]
[1739075882350,0.5857,2670.5,2670.3,3.2078]
[1739075882751,0.5857,2670.5,2670.1,3.80882693]
[1739075884560,0.5857,2670.5,2670.4,2.66462693]
[1739075887460,0.58949282,2670.5,2670.4,2.66462693]
[1739075891753,0.58949282,2670.5,2670.1,3.80882693]
[1739075891958,4.50075954,2670.5,2670.1,2.66462693]
[1739075892158,0.569,2670.4,2670.1,2.66462693]
[1739075892359,0.5488,2670.3,2670.1,2.66462693]
[1739075895362,3.2078,2670.9,2670.2,1.74]
[1739075895565,3.2078,2671.5,2670.8,5.87242693]
[1739075895760,3.2078,2671.5,2670.8,2.66462693]
[1739075895965,3.2078,2671.5,2671.1,2.66462693]
[1739075895966,0.803,2671.4,2671.1,2.66462693]
[1739075896271,0.803,2671.4,2670.8,2.66462693]
[1739075896465,3.2078,2671.2,2670.8,2.66462693]
[1739075896763,1.1963,2671.1,2670.5,5.87242693]
[1739075896967,6.08935522,2671.1,2670.5,5.87242693]
[1739075897862,6.08935522,2671.1,2670.5,2.66462693]
[1739075898063,3.2078,2670.9,2670.5,2.66462693]
[1739075898868,4.30655878,2670.8,2670.5,2.66462693]
[1739075899368,0.6049,2670.7,2670.5,2.66462693]
[1739075900567,4.30655878,2670.8,2670.5,2.66462693]
[1739075900769,0.6009,2671.0,2670.6,0.5457]
[1739075901073,0.6011,2671.1,2670.9,2.66462693]
[1739075902768,1.1373,2671.0,2670.9,2.66462693]
[1739075902968,3.2078,2671.5,2670.9,2.66462693]
[1739075903163,1.7423,2671.4,2670.9,2.66462693]
[1739075903372,5.70893758,2671.4,2670.9,2.66462693]
[1739075904173,3.2078,2671.2,2670.6,2.66462693]
[1739075904664,3.93162859,2671.1,2670.6,2.66462693]
[1739075905173,3.93162859,2671.1,2670.6,3.23092693]
[1739075905373,0.5633,2671.0,2670.6,3.23092693]
[1739075906470,0.5633,2671.0,2670.9,2.66462693]
[1739075909078,4.82021446,2671.0,2670.6,2.66462693]
[1739075909381,1.1303,2670.9,2670.6,2.66462693]
[1739075912573,3.91517307,2670.8,2670.3,2.67024585]
[1739075912975,3.91517307,2670.8,2670.3,0.00561892]
[1739075913175,3.91517307,2670.8,2670.3,2.67024585]
[1739075920980,3.91517307,2670.8,2670.6,2.66462693]
[1739075921188,1.1303,2670.9,2670.6,2.66462693]
[1739075922581,1.1303,2670.9,2670.6,8.89462693]
[1739075922885,1.1303,2670.9,2670.6,2.66462693]
[1739075924177,4.3381,2670.9,2670.3,2.67024585]
[1739075929093,3.90713581,2670.8,2670.3,2.67024585]
[1739075939688,3.90713581,2670.8,2670.3,0.00561892]
[1739075939895,0.74877,2670.7,2670.3,0.00561892]
[1739075940197,4.74248684,2670.6,2670.3,0.00561892]
[1739075940496,0.5754,2670.5,2670.3,0.00561892]
[1739075940698,0.5709,2670.4,2670.3,0.00561892]
[1739075941002,4.58761217,2670.4,2670.3,0.00561892]
[1739075945703,4.58761217,2670.4,2670.3,2.67024585]
[1739075946011,0.6005,2670.6,2670.3,2.67024585]
[1739075948708,1.2004,2670.8,2670.3,2.67024585]
[1739075948905,1.8053,2670.8,2670.3,2.68024585]
[1739075949696,3.2078,2670.9,2670.6,2.66462693]
[1739075949900,2.66462693,2671.7,2670.6,2.66462693]
[1739075949901,4.3317,2671.3,2670.7,4.3762]
[1739075950200,4.54346642,2671.2,2670.7,1.1684]
[1739075950396,4.54346642,2671.2,2670.7,1.1784]
[1739075951806,4.54346642,2671.2,2670.9,2.66462693]
[1739075955709,3.93856642,2671.2,2671.0,0.5727]
[1739075957003,0.5766,2671.3,2671.0,0.5727]
[1739075957204,0.5766,2671.3,2671.2,2.66462693]
[1739075962621,0.584,2671.5,2671.2,2.66462693]
[1739075963723,1.1076,2671.8,2671.2,2.66462693]
[1739075963907,0.5612,2671.8,2671.6,2.66462693]
[1739075965714,0.5612,2671.8,2671.3,5.87242693]
[1739075965909,3.95631,2671.6,2671.0,2.66462693]
[1739075966118,1.35044,2671.5,2670.9,3.2078]
[1739075966420,0.5494,2671.4,2670.9,3.2078]
[1739075966815,3.95508087,2671.3,2670.9,3.2078]
[1739075967118,0.5719,2671.2,2670.9,3.2078]
[1739075967516,4.82819816,2671.1,2670.9,3.2078]
[1739075970624,4.82819816,2671.1,2670.7,2.66462693]
[1739075970823,3.2078,2671.0,2670.4,5.87242693]
[1739075971425,4.22121328,2670.9,2670.4,5.87242693]
[1739075973423,0.5709,2671.1,2670.4,5.87242693]
[1739075973619,4.03140267,2671.0,2670.4,5.87242693]
[1739075973823,0.5709,2671.1,2670.4,5.87242693]
[1739075974018,4.03140267,2671.0,2670.4,5.87242693]
[1739075974213,7.23920267,2671.0,2670.4,5.87242693]
[1739075975023,0.5528,2670.9,2670.4,5.87242693]
[1739075975319,4.01888646,2670.8,2670.4,5.87242693]
[1739075975526,0.547,2670.7,2670.4,5.87242693]
[1739075975728,1.1467,2670.7,2670.4,5.87242693]
[1739075976118,4.0331973,2670.6,2670.4,5.87242693]
[1739075977326,4.0331973,2670.6,2670.3,0.00561892]
[1739075980927,3.2078,2670.4,2670.3,0.00561892]
[1739075981418,7.5437033,2670.4,2670.3,0.00561892]
[1739075987231,8.8929333,2670.4,2670.3,0.00561892]
[1739075987728,8.1441033,2670.4,2670.3,0.00561892]
[1739075989331,8.8929333,2670.4,2670.3,0.00561892]
[1739075991434,8.1441033,2670.4,2670.3,0.00561892]
[1739075992334,8.8929333,2670.4,2670.3,0.00561892]
[1739075994735,8.1441033,2670.4,2670.3,0.00561892]
[1739076000337,8.8929333,2670.4,2670.3,0.00561892]
[1739076001338,8.1441033,2670.4,2670.3,0.00561892]
[1739076001742,8.8929333,2670.4,2670.3,0.00561892]
[1739076001941,8.1441033,2670.4,2669.6,0.5635]
[1739076002240,8.1441033,2670.4,2669.5,6.43992693]
[1739076002241,3.2078,2670.0,2669.5,5.87242693]
[1739076002539,1.6941,2669.9,2669.5,5.87242693]
[1739076002735,5.72629968,2669.9,2669.5,5.87242693]
[1739076004041,5.17739968,2669.9,2669.5,5.87242693]
[1739076004239,4.03219968,2669.9,2669.8,2.66462693]
[1739076011840,7.23999968,2669.9,2669.5,2.66462693]
[1739076012039,1.7189,2669.8,2669.5,2.66462693]
[1739076012431,4.13362101,2669.7,2669.5,2.66462693]
[1739076014833,4.13362101,2669.7,2669.4,0.00561892]
[1739076026641,4.13362101,2669.7,2669.6,1.18564183]
[1739076029254,7.34142101,2669.7,2669.6,1.18564183]
[1739076031357,7.34142101,2669.7,2669.4,0.00561892]
[1739076031559,1.18564183,2669.6,2669.0,1.18564183]
[1739076031765,1.93472183,2669.6,2669.2,1.18564183]
[1739076031961,3.94333152,2669.5,2669.2,1.18564183]
[1739076032660,3.2078,2669.4,2669.2,1.18564183]
[1739076032854,1.1381,2669.3,2669.2,1.18564183]
[1739076033060,5.13666377,2669.3,2669.2,1.18564183]
[1739076033264,5.13666377,2669.3,2669.1,0.00561892]
[1739076034771,0.5556,2669.2,2669.1,0.00561892]
[1739076035167,4.58023652,2669.2,2669.1,0.00561892]
[1739076041362,5.32940652,2669.2,2669.1,0.00561892]
[1739076041872,4.58023652,2669.2,2669.1,0.00561892]
[1739076044667,5.76587835,2669.2,2669.1,0.00561892]
[1739076044876,5.76587835,2669.2,2668.8,1.18564183]
[1739076045069,4.58023652,2669.2,2668.8,1.18564183]
[1739076045270,4.58023652,2669.2,2669.0,1.18564183]
[1739076048479,4.58023652,2669.2,2668.8,1.19126075]
[1739076050577,4.58023652,2669.2,2668.8,0.00561892]
[1739076051368,5.32943652,2669.2,2668.8,0.00561892]
[1739076053378,4.58023652,2669.2,2668.8,0.00561892]
[1739076054075,3.2078,2669.1,2668.8,0.00561892]
[1739076054582,3.97846104,2669.0,2668.8,0.00561892]
[1739076056379,3.97846104,2669.0,2668.9,2.65055243]
[1739076056579,3.97846104,2669.0,2668.9,3.24155243]
[1739076057686,3.97846104,2669.0,2668.9,0.591]
[1739076059883,4.14905472,2669.1,2668.9,0.591]
[1739076060082,0.5556,2669.2,2668.9,0.591]
[1739076060477,4.14905472,2669.1,2668.9,0.591]
[1739076067897,4.14905472,2669.1,2668.9,3.24155243]
[1739076068195,0.5841,2669.5,2669.0,3.7938]
[1739076068382,1.1767,2669.8,2669.3,3.2078]
[1739076068588,0.5841,2669.7,2669.5,2.65055243]
[1739076068794,0.5841,2669.7,2669.5,3.23655243]
[1739076068795,4.2173606,2669.7,2669.5,3.23655243]
[1739076069091,0.00558237,2670.0,2669.6,0.0154]
[1739076069389,4.2173606,2669.9,2669.6,0.0154]
[1739076070298,4.2173606,2669.9,2669.8,2.65055243]
[1739076076908,0.00558237,2670.0,2669.8,2.65055243]
[1739076078697,0.00558237,2670.0,2669.9,3.7858]
[1739076079299,0.00558237,2670.0,2669.9,0.578]
[1739076081223,0.00558237,2670.0,2669.8,2.65055243]
[1739076083909,0.00558237,2670.0,2669.9,0.5914]